{"text_format":"1","workbook":"xlsx","n_sheets":2,"sheets":["Feuil1","Feuil2"],"not_rendered":{"charts":0,"images":0,"macros":1,"external_links":0,"defined_names":0,"comments":0,"pivot_tables":0},"unopened":[],"bounds":{"document_bytes":16777216,"sheet_cells":100000,"rows_first":2000,"rows_last":500,"rows_between":2000,"halvings":0,"cell_chars":16384,"cell_head_chars":4096},"cells_cut":0,"cells_raw":0,"read":"whole","date_system":"1900"}

{"sheet":"Feuil1","index":0,"n_rows":9,"n_cols":18,"rows_kept":9,"cut":false,"hidden":false,"merged":[[0,0,0,15]]}
["Arbre sans remise"]
["Détermine le nombre de billes de chaque couleur que ton urne contiendra.",null,null,null,null,null,null,null,null,null,null,null,null,null,null,null,null,4]
["Couleur","Nombre",null,null,null,null,null,null,null,null,null,null,null,null,null,null,2,2]
["Bleue:",2,null,null,null,null,null,null,null,null,null,null,null,null,null,null,4,4]
["Rouge:",3,null,null,null,null,null,null,null,null,null,null,null,null,null,null,2,2]
["Verte:",6,null,null,null,null,null,null,null,null,null,null,null,null,null,null,null,4]
["Jaune:",0,null,null,null,null,null,null,null,null,null,null,null,null,null,null,null,2]
[null,null,null,null,null,null,null,null,null,null,null,null,null,null,null,null,null,4]
[null,null,null,null,null,null,null,null,null,null,null,null,null,null,null,null,null,2]

{"sheet":"Feuil2","index":1,"n_rows":20,"n_cols":18,"rows_kept":20,"cut":false,"hidden":false,"merged":[]}
[null,null,null,null,null,null,null,null,null,null,null,null,null,null,null,2,1,{"$f":"P1*Q1","v":2}]
[null,null,null,null,null,null,null,null,null,null,null,null,null,null,null,2,3,{"$f":"P2*Q2","v":6}]
[null,null,null,null,null,null,null,null,null,null,null,null,null,null,null,2,6,12]
[null,null,null,null,null,null,null,null,null,null,null,null,null,null,null,3,2,6]
[null,null,null,null,null,null,null,null,null,null,null,null,null,null,null,3,2,6]
[null,null,null,null,null,null,null,null,null,null,null,null,null,null,null,3,6,18]
[null,null,null,null,null,null,null,null,null,null,null,null,null,null,null,6,2,12]
[null,null,null,null,null,null,null,null,null,null,null,null,null,null,null,6,3,18]
[null,null,null,null,null,null,null,null,null,null,null,null,null,null,null,6,5,30]
[null,null,null,null,null,null,null,null,null,null,null,null,null,null,null,6,3,18]
[null,null,null,null,null,null,null,null,null,null,null,null,null,null,null,6,5,30]
[null,null,null,null,null,null,null,null,null,null,null,null,null,null,null,6,4,24]
[null,null,null,null,null,null,null,null,null,null,null,null,null,null,null,4,2,8]
[null,null,null,null,null,null,null,null,null,null,null,null,null,null,null,4,3,12]
[null,null,null,null,null,null,null,null,null,null,null,null,null,null,null,4,6,24]
[null,null,null,null,null,null,null,null,null,null,null,null,null,null,null,4,3,12]
[null,null,null,null,null,null,null,null,null,null,null,null,null,null,null,null,null,0]
[null,null,null,null,null,null,null,null,null,null,null,null,null,null,null,null,null,0]
[null,null,null,null,null,null,null,null,null,null,null,null,null,null,null,null,null,0]
[null,null,null,null,null,null,null,null,null,null,null,null,null,null,null,null,null,0]